bitfinex-derivatives/quotes_BTCF0:USTF0_20230101
["timestamp","ask_amount","ask_price","bid_price","bid_amount"]
[1672600660600,1.4311996,16619.0,16618.0,0.19]
[1672600661864,1.4311996,16620.0,16618.0,0.19]
[1672600662186,1.4311996,16620.0,16619.0,0.3007]
[1672600663332,1.4311996,16620.0,16619.0,0.4417]
[1672600664487,1.4016696,16620.0,16619.0,0.4417]
[1672600665325,1.4016696,16622.0,16619.0,0.4417]
[1672600665541,1.4016696,16622.0,16621.0,0.3007]
[1672600666702,1.4016696,16622.0,16621.0,0.4247]
[1672600680992,1.4016696,16622.0,16621.0,0.124]
[1672600683199,1.7016696,16622.0,16621.0,0.124]
[1672600683513,0.05,16621.0,16619.0,0.3007]
[1672600683831,1.4016696,16620.0,16619.0,0.3007]
[1672600685185,1.4016696,16620.0,16619.0,0.3327]
[1672600685611,1.4146696,16620.0,16619.0,0.3327]
[1672600686662,1.4146696,16620.0,16619.0,0.032]
[1672600687497,1.4146696,16620.0,16619.0,0.082]
[1672600697917,1.4146696,16620.0,16619.0,0.17204657]
[1672600699485,1.4146696,16620.0,16619.0,0.30722644]
[1672600704016,1.4146696,16620.0,16619.0,0.60792644]
[1672600704429,1.4146696,16620.0,16619.0,0.47274657]
[1672600705067,1.4146696,16620.0,16619.0,0.60792644]
[1672600705487,1.4146696,16620.0,16619.0,0.47274657]
[1672600707482,0.013,16620.0,16619.0,0.47274657]
[1672600707685,0.013,16620.0,16619.0,0.60792644]
[1672600707896,0.013,16620.0,16619.0,0.65112483]
[1672600708108,0.013,16620.0,16619.0,0.83148922]
[1672600708321,0.013,16620.0,16619.0,0.65112483]
[1672600708534,0.013,16620.0,16619.0,1.329394]
[1672600708741,0.013,16620.0,16619.0,0.83148922]
[1672600708950,0.013,16620.0,16619.0,0.65112483]
[1672600709162,0.013,16620.0,16619.0,0.83148922]
[1672600709479,0.013,16620.0,16619.0,0.65112483]
[1672600711801,0.013,16620.0,16619.0,0.35042483]
[1672600712011,0.013,16620.0,16619.0,0.65112483]
[1672600713061,0.013,16620.0,16619.0,1.19421129]
[1672600714009,0.00462,16620.0,16619.0,1.19421129]
[1672600714747,0.00462,16620.0,16619.0,1.42026766]
[1672600714948,0.00462,16620.0,16619.0,1.19421129]
[1672600715161,0.00462,16620.0,16619.0,1.42026766]
[1672600715368,0.00462,16620.0,16619.0,1.19421129]
[1672600716320,0.00462,16620.0,16619.0,1.06096633]
[1672600718519,0.00462,16620.0,16619.0,1.66326633]
[1672600718732,1.4016696,16623.0,16620.0,0.05924]
[1672600718937,1.4016696,16623.0,16622.0,0.3007]
[1672600720098,1.4016696,16623.0,16622.0,0.3587]
[1672600720315,1.4016696,16623.0,16622.0,0.44851918]
[1672600720524,1.4016696,16623.0,16622.0,0.3507]
[1672600720731,1.4016696,16623.0,16622.0,0.3527]
[1672600725781,1.4016696,16623.0,16622.0,0.3507]
[1672600727988,1.4016696,16623.0,16622.0,0.44051918]
[1672600733986,1.4016696,16623.0,16622.0,0.3007]
[1672600737135,1.4016696,16623.0,16622.0,0.39051918]
[1672600737768,1.4016696,16623.0,16622.0,0.3007]
[1672600754062,1.4016696,16623.0,16620.0,0.39975918]
[1672600754272,1.4016696,16621.0,16620.0,0.39975918]
[1672600755326,1.4016696,16621.0,16620.0,0.54375918]
[1672600756695,1.4016696,16621.0,16620.0,0.67848795]
[1672600758050,1.4016696,16621.0,16620.0,0.45394]
[1672600758267,1.4016696,16621.0,16620.0,0.54375918]
[1672600758477,1.4016696,16621.0,16620.0,0.45394]
[1672600758692,1.4016696,16621.0,16620.0,0.54375918]
[1672600760179,1.4016696,16621.0,16620.0,0.67848795]
[1672600760370,0.3007,16625.0,16620.0,0.67848795]
[1672600760582,0.05,16625.0,16623.0,0.3007]
[1672600761105,1.4016696,16624.0,16623.0,0.3007]
[1672600761738,1.4016696,16624.0,16623.0,0.3027]
[1672600766678,1.4016696,16624.0,16623.0,0.30254846]
[1672600768151,1.4016696,16624.0,16623.0,0.3027]
[1672600768992,1.4016696,16624.0,16623.0,0.002]
[1672600769308,1.4016696,16624.0,16623.0,0.052]
[1672600770461,1.4016696,16624.0,16623.0,0.002]
[1672600770874,1.4016696,16624.0,16623.0,0.052]
[1672600772042,1.4016696,16624.0,16623.0,0.002]
[1672600775186,1.3911756,16624.0,16623.0,0.002]
[1672600779599,0.05,16623.0,16620.0,0.30994]
[1672600779811,1.3911756,16621.0,16620.0,0.00924]
[1672600780550,1.3911756,16621.0,16620.0,0.15124]
[1672600781075,1.3911756,16621.0,16620.0,0.54175918]
[1672600781288,1.3911756,16621.0,16620.0,0.58666877]
[1672600781602,1.3911756,16621.0,16620.0,0.54194519]
[1672600785488,1.3911756,16621.0,16620.0,0.45194]
[1672600813872,1.3911756,16622.0,16620.0,0.54194519]
[1672600814187,1.3911756,16622.0,16621.0,0.05]
[1672600815552,1.3911756,16622.0,16621.0,0.106]
[1672600818080,1.3911756,16622.0,16621.0,0.49670519]
[1672600818396,1.3911756,16622.0,16621.0,0.4067]
[1672600819542,1.3911756,16622.0,16621.0,0.106]
[1672600819759,1.3911756,16622.0,16621.0,0.4067]
[1672600820923,1.3911756,16622.0,16621.0,0.44070519]
[1672600821120,1.3911756,16622.0,16621.0,0.49670519]
[1672600821329,1.3911756,16622.0,16621.0,0.4067]
[1672600821749,1.3911756,16622.0,16621.0,0.49670519]
[1672600821968,1.3911756,16622.0,16621.0,0.3507]
[1672600822282,1.3911756,16622.0,16621.0,0.4067]
[1672600822805,1.3911756,16622.0,16621.0,0.49670519]
[1672600823017,1.3911756,16622.0,16621.0,0.4067]
[1672600829113,1.3911756,16622.0,16621.0,0.40658126]
[1672600832052,1.3911756,16622.0,16621.0,0.10588126]
[1672600832265,1.3911756,16622.0,16621.0,0.40658126]
[1672600837632,1.3911756,16622.0,16621.0,0.10588126]
[1672600838255,1.3911756,16622.0,16621.0,0.04988126]
[1672600838477,1.3911756,16622.0,16621.0,0.10588126]
[1672600838688,1.3911756,16622.0,16621.0,0.04988126]
[1672600838897,1.3931756,16622.0,16620.0,0.44070519]
[1672600839105,0.05,16621.0,16620.0,0.44070519]
[1672600839947,0.05,16621.0,16620.0,0.3007]
[1672600840152,0.05,16621.0,16618.0,0.52543396]
[1672600840364,1.3911756,16619.0,16618.0,0.52543396]
[1672600840682,1.3911756,16619.0,16618.0,0.3007]
[1672600841093,1.3911756,16619.0,16618.0,0.4427]
[1672600841515,1.3911756,16619.0,16618.0,0.3007]
[1672600841728,1.3911756,16619.0,16618.0,0.4427]
[1672600846349,1.3911756,16619.0,16618.0,0.53270519]
[1672600848137,1.3911756,16619.0,16618.0,0.57742877]
[1672600849397,1.3911756,16619.0,16618.0,0.66748824]
[1672600852554,1.3911756,16619.0,16618.0,0.53275947]
[1672600852760,1.3911756,16619.0,16618.0,0.66748824]
[1672600853185,1.3911756,16619.0,16618.0,0.53275947]
[1672600854343,1.3911756,16619.0,16618.0,0.4427]
[1672600859494,1.3911756,16619.0,16618.0,0.142]
[1672600862019,1.3911756,16619.0,16618.0,0.4427]
[1672600865373,0.3007,16621.0,16618.0,0.4427]
[1672600865585,1.3911756,16619.0,16618.0,0.4427]
[1672600868531,1.3911756,16619.0,16618.0,0.142]
[1672600881778,1.3911756,16619.0,16618.0,0.14193751]
[1672600891245,1.9934756,16619.0,16618.0,0.14193751]
[1672600893551,1.9934756,16619.0,16615.0,0.05]
[1672600893552,0.05,16618.0,16615.0,0.05]
[1672600893762,1.3911756,16616.0,16615.0,0.05]
[1672600894712,1.3911756,16616.0,16614.0,0.3007]
[1672600895238,0.05,16615.0,16614.0,0.3007]
[1672600895649,0.05,16615.0,16614.0,0.3157]
[1672600896070,0.05,16615.0,16614.0,0.3007]
[1672600896281,0.064,16615.0,16614.0,0.3157]
[1672600896503,0.014,16615.0,16614.0,0.3157]
[1672600900179,0.064,16615.0,16614.0,0.3157]
[1672600900605,0.064,16615.0,16614.0,0.40575947]
[1672600901342,0.064,16615.0,16614.0,0.3157]
[1672600904277,0.014,16615.0,16614.0,0.3157]
[1672600904483,0.064,16615.0,16614.0,0.3157]
[1672600905962,0.014,16615.0,16614.0,0.3157]
[1672600906372,0.014,16615.0,16614.0,0.40575947]
[1672600907217,0.064,16615.0,16614.0,0.40575947]
[1672600907434,0.064,16615.0,16614.0,0.3157]
[1672600909012,0.064,16615.0,16614.0,0.015]
[1672600909224,0.064,16615.0,16614.0,0.3657]
[1672600910055,0.064,16615.0,16614.0,0.3157]
[1672600913224,0.064,16615.0,16614.0,0.015]
[1672600914282,1.4551756,16615.0,16614.0,0.015]
[1672600914479,0.270574,16618.0,16614.0,0.3007]
[1672600914690,0.014,16615.0,16614.0,0.3137]
[1672600914905,1.3911756,16616.0,16614.0,0.3007]
[1672600915117,0.014,16615.0,16614.0,0.3137]
[1672600916489,1.3911756,16616.0,16615.0,0.05]
[1672600917529,1.4061756,16616.0,16615.0,0.063]
[1672600924158,1.4061756,16616.0,16615.0,0.3637]
[1672600925212,1.4061756,16616.0,16615.0,0.063]
[1672600926365,1.4061756,16616.0,16615.0,0.3637]
[1672600929509,0.015,16616.0,16615.0,0.3637]
[1672600929719,1.4061756,16616.0,16615.0,0.3637]
[1672600942540,1.4061756,16616.0,16615.0,0.45375947]
[1672600943272,1.4061756,16616.0,16615.0,0.58848824]
[1672600944334,1.4061756,16616.0,16615.0,0.45375947]
[1672600944643,1.4061756,16616.0,16615.0,0.58848824]
[1672600945273,1.4061756,16616.0,16615.0,0.45375947]
[1672600951790,1.4061756,16616.0,16615.0,0.3637]
[1672600953046,1.4061756,16616.0,16615.0,0.3137]
[1672600955883,1.4061756,16616.0,16615.0,0.013]
[1672600958094,1.4061756,16616.0,16615.0,0.3137]
[1672600966187,1.4061756,16616.0,16615.0,0.31362225]
[1672600968699,1.4061756,16616.0,16615.0,0.40368172]
[1672600968917,1.4061756,16616.0,16615.0,0.31362225]
[1672600969549,1.4061756,16616.0,16615.0,0.40368172]
[1672600974903,1.4061756,16616.0,16615.0,0.10298172]
[1672600975218,1.4061756,16616.0,16615.0,0.40368172]
[1672600975855,1.4061756,16616.0,16615.0,0.31362225]
[1672600980058,0.015,16616.0,16615.0,0.31362225]
[1672600980272,1.4061756,16616.0,16615.0,0.31362225]
[1672600985935,1.4061756,16616.0,16615.0,0.01292225]
[1672600986150,1.4061756,16616.0,16615.0,0.31362225]
[1672600988878,1.4061756,16616.0,16615.0,0.40368172]
[1672600989292,1.4061756,16616.0,16615.0,0.31362225]
[1672600996874,1.4061756,16616.0,16615.0,0.01292225]
[1672600997393,1.4061756,16616.0,16615.0,0.10298172]
[1672600998441,1.4061756,16616.0,16615.0,0.01292225]
[1672601001805,1.4061756,16616.0,16615.0,0.31362225]
[1672601004325,1.4061756,16616.0,16615.0,0.40368172]
[1672601011481,1.4061756,16616.0,16615.0,0.40345767]
[1672601015478,1.4061756,16616.0,16615.0,0.10275767]
[1672601015994,1.4061756,16616.0,16615.0,0.40345767]
[1672601022734,1.4061756,16616.0,16615.0,0.10275767]
[1672601022946,1.4061756,16616.0,16615.0,0.40345767]
[1672601025676,1.4061756,16616.0,16615.0,0.44812697]
[1672601025996,1.4061756,16616.0,16615.0,0.53831025]
[1672601029459,0.015,16616.0,16615.0,0.53831025]
[1672601029678,1.4061756,16616.0,16615.0,0.53831025]
[1672601031258,0.015,16616.0,16615.0,0.53831025]
[1672601031572,1.4061756,16616.0,16615.0,0.53831025]
[1672601031780,0.015,16616.0,16615.0,0.53831025]
[1672601032088,1.4061756,16616.0,16615.0,0.53831025]
[1672601032936,1.4061756,16616.0,16615.0,0.40358148]
[1672601033568,1.4061756,16616.0,16615.0,0.53831025]
[1672601034190,1.4061756,16616.0,16615.0,0.40358148]
[1672601034405,1.4061756,16616.0,16615.0,0.53831025]
[1672601034721,1.4061756,16616.0,16615.0,0.40358148]
[1672601035138,1.4061756,16616.0,16615.0,0.53831025]
[1672601035351,1.4061756,16616.0,16615.0,0.40358148]
[1672601035985,1.4061756,16616.0,16615.0,0.53831025]
[1672601037241,1.4061756,16616.0,16615.0,0.40358148]
[1672601039871,1.4061756,16616.0,16615.0,0.53831025]
[1672601042715,1.4061756,16616.0,16615.0,0.40358148]
[1672601043031,1.4061756,16616.0,16615.0,0.53831025]
[1672601043341,1.4061756,16616.0,16615.0,0.40358148]
[1672601045763,1.4061756,16616.0,16615.0,0.10288148]
[1672601046182,1.4061756,16616.0,16615.0,0.40358148]
[1672601049441,1.4061756,16616.0,16615.0,0.3133982]
[1672601051014,1.4061756,16616.0,16615.0,0.40358148]
[1672601051649,1.4061756,16616.0,16615.0,0.3133982]
[1672601054381,1.40606519,16616.0,16615.0,0.3133982]
[1672601055854,1.40606519,16616.0,16615.0,0.0126982]
[1672601056062,1.40606519,16616.0,16615.0,0.3133982]
[1672601058062,1.40606519,16616.0,16615.0,0.40358148]
[1672601058483,1.40606519,16616.0,16615.0,0.3133982]
[1672601061215,1.40606519,16616.0,16615.0,0.40358148]
[1672601062263,1.40606519,16616.0,16615.0,0.3133982]
[1672601062893,1.40606519,16616.0,16615.0,0.40358148]
[1672601063306,1.40606519,16616.0,16615.0,0.10288148]
[1672601063526,1.40606519,16616.0,16615.0,0.40358148]
[1672601067418,1.40606519,16616.0,16615.0,0.53831025]
[1672601068680,1.40606519,16616.0,16615.0,0.23761025]
[1672601068892,1.40606519,16616.0,16615.0,0.53831025]
[1672601069209,1.40606519,16616.0,16615.0,0.40358148]
[1672601070043,1.40606519,16616.0,16615.0,0.10288148]
[1672601070257,1.40606519,16616.0,16615.0,0.40358148]
[1672601070677,1.40606519,16616.0,16615.0,0.23761025]
[1672601070884,1.40606519,16616.0,16615.0,0.53831025]
[1672601071311,1.40606519,16616.0,16615.0,0.40358148]
[1672601071938,1.40606519,16616.0,16615.0,0.53831025]
[1672601073303,1.40606519,16616.0,16615.0,0.40358148]
[1672601080680,1.40606519,16616.0,16615.0,0.53831025]
[1672601084148,1.40606519,16616.0,16615.0,0.40358148]
[1672601087828,1.40606519,16616.0,16615.0,0.10288148]
[1672601088145,1.40606519,16616.0,16615.0,0.40358148]
[1672601089822,1.40606519,16616.0,16615.0,0.10288148]
[1672601090036,1.40606519,16616.0,16615.0,0.40358148]
[1672601092340,1.40606519,16616.0,16615.0,0.10288148]
[1672601092550,1.40606519,16616.0,16615.0,0.40358148]
[1672601092764,1.40606519,16616.0,16615.0,0.10288148]
[1672601092976,1.40606519,16616.0,16615.0,0.40358148]
[1672601094440,1.40606519,16616.0,16615.0,0.53831025]
[1672601095912,1.40606519,16616.0,16615.0,0.40358148]
[1672601096344,1.40606519,16616.0,16615.0,0.53831025]
[1672601098347,1.40606519,16616.0,16615.0,0.40358148]
[1672601098771,1.40606519,16616.0,16615.0,0.53831025]
[1672601099502,1.40606519,16616.0,16615.0,0.40358148]
[1672601100234,1.40606519,16616.0,16615.0,0.53831025]
[1672601106646,1.40606519,16616.0,16615.0,0.53820253]
[1672601110968,1.40606519,16616.0,16615.0,0.40347376]
[1672601112222,1.40606519,16616.0,16615.0,0.31329048]
[1672601118636,1.40606519,16616.0,16615.0,0.40347376]
[1672601123369,1.40606519,16616.0,16615.0,0.31329048]
[1672601123790,1.40606519,16616.0,16615.0,0.40347376]
[1672601124318,1.40606519,16616.0,16615.0,0.31329048]
[1672601124522,1.40606519,16616.0,16615.0,0.40347376]
[1672601124842,1.40606519,16616.0,16615.0,0.31329048]
[1672601126410,1.40606519,16616.0,16615.0,0.40347376]
[1672601131681,1.40606519,16616.0,16615.0,0.53820253]
[1672601133468,1.40606519,16616.0,16615.0,0.40347376]
[1672601136302,0.01488959,16616.0,16615.0,0.40347376]
[1672601136513,1.40606519,16616.0,16615.0,0.40347376]
[1672601139567,1.40606519,16616.0,16615.0,0.10277376]
[1672601139766,1.40606519,16616.0,16615.0,0.40347376]
[1672601144102,0.01488959,16616.0,16615.0,0.53820253]
[1672601144508,0.06488959,16616.0,16615.0,0.40347376]
[1672601145039,0.01488959,16616.0,16615.0,0.40347376]
[1672601145242,0.01488959,16616.0,16615.0,0.53820253]
[1672601145668,0.01488959,16616.0,16615.0,0.40347376]
[1672601147133,0.06488959,16616.0,16615.0,0.40347376]
[1672601148290,0.01488959,16616.0,16615.0,0.40347376]
[1672601148501,0.01488959,16616.0,16615.0,0.53820253]
[1672601156174,0.01488959,16616.0,16615.0,0.44779164]
[1672601157446,0.01488959,16616.0,16615.0,0.99076687]
[1672601158386,0.01488959,16616.0,16615.0,1.1259474]
[1672601158704,0.01488959,16616.0,16615.0,0.62788549]
[1672601159546,0.01488959,16616.0,16615.0,0.44824714]
[1672601160272,0.01488959,16616.0,16615.0,0.62788549]
[1672601160485,0.01488959,16616.0,16615.0,0.44824714]
[1672601160699,0.01488959,16616.0,16615.0,0.62788549]
[1672601160897,0.01488959,16616.0,16615.0,0.44824714]
[1672601163529,0.01488959,16616.0,16615.0,0.40318906]
[1672601168363,0.01488959,16616.0,16615.0,0.53837333]
[1672601169833,0.01488959,16616.0,16615.0,0.44824714]
[1672601170254,0.01488959,16616.0,16615.0,0.53837561]
[1672601171094,0.01488959,16616.0,16615.0,0.99077008]
[1672601171511,0.01488959,16616.0,16615.0,1.12597596]
[1672601171834,0.01488959,16616.0,16615.0,0.69007008]
[1672601172038,0.01488959,16616.0,16615.0,1.12597181]
[1672601172453,0.01488959,16616.0,16615.0,0.99077008]
[1672601172668,0.01488959,16616.0,16615.0,1.12597341]
[1672601172883,0.01488959,16616.0,16615.0,0.99077008]
[1672601173093,0.01488959,16616.0,16615.0,1.12597312]
[1672601174663,0.01488959,16616.0,16615.0,0.62790426]
[1672601175194,0.01488959,16616.0,16615.0,1.12597996]
[1672601176869,0.01488959,16616.0,16615.0,0.99077692]
[1672601181719,1.3911756,16617.0,16616.0,0.05]
[1672601181919,1.3911756,16617.0,16616.0,0.36484218]
[1672601182128,1.3911756,16617.0,16616.0,0.36480856]
[1672601182340,1.3911756,16617.0,16616.0,0.72767724]
[1672601182758,1.3605566,16619.0,16616.0,1.37569526]
[1672601182967,1.3605566,16619.0,16618.0,0.43583778]
[1672601184024,1.3605566,16619.0,16618.0,0.52586949]
[1672601184438,1.3665566,16619.0,16618.0,0.42173171]
[1672601185813,1.3605566,16619.0,16618.0,0.39073171]
[1672601186020,1.3745566,16619.0,16618.0,0.41573171]
[1672601186229,1.3745566,16619.0,16618.0,0.39073171]
[1672601186444,1.3665566,16619.0,16618.0,0.40773171]
[1672601186970,1.3745566,16619.0,16618.0,0.41573171]
[1672601189915,1.3745566,16619.0,16618.0,0.11503171]
[1672601190121,1.3745566,16619.0,16618.0,0.46573171]
[1672601190968,1.3745566,16619.0,16618.0,0.16503171]
[1672601191167,1.3745566,16619.0,16618.0,0.46573171]
[1672601194642,1.3745566,16619.0,16618.0,0.3757]
[1672601194854,1.3745566,16619.0,16618.0,0.46573171]
[1672601195275,1.3745566,16619.0,16618.0,0.3757]
[1672601198419,1.3745566,16619.0,16618.0,0.46573171]
[1672601198738,1.3745566,16619.0,16618.0,0.3757]
[1672601200416,1.3745566,16619.0,16618.0,0.46573171]
[1672601201044,1.3745566,16619.0,16618.0,0.3757]
[1672601206523,1.3745566,16619.0,16618.0,0.075]
[1672601206733,1.3745566,16619.0,16618.0,0.3757]
[1672601208521,1.3745566,16619.0,16618.0,0.46573171]
[1672601213565,1.3745566,16619.0,16618.0,0.16503171]
[1672601213780,1.3745566,16619.0,16618.0,0.46573171]
[1672601216295,1.3745566,16619.0,16618.0,0.3757]
[1672601217982,1.3745566,16619.0,16618.0,0.46573171]
[1672601219241,1.3745566,16619.0,16618.0,0.3757]
[1672601220821,1.3745566,16619.0,16618.0,0.46573171]
[1672601222183,1.3745566,16619.0,16618.0,0.60086949]
[1672601223544,1.3745566,16619.0,16618.0,0.69102149]
[1672601223756,1.3745566,16619.0,16618.0,1.18901904]
[1672601225339,1.3745566,16619.0,16618.0,1.05388126]
[1672601225777,1.3745566,16619.0,16618.0,1.1891306]
[1672601226391,1.3745566,16619.0,16618.0,0.69113305]
[1672601226709,1.3745566,16619.0,16618.0,0.51094934]
[1672601227536,1.3745566,16619.0,16618.0,1.18913078]
[1672601228278,1.3745566,16619.0,16618.0,0.51094934]
[1672601228492,1.3745566,16619.0,16618.0,1.1891307]
[1672601229332,1.3745566,16619.0,16618.0,1.18912688]
[1672601229954,1.3745566,16619.0,16618.0,1.05388136]
[1672601230589,1.3745566,16619.0,16618.0,1.05367315]
[1672601231220,1.3745566,16619.0,16618.0,0.5107268]
[1672601234162,0.014,16619.0,16618.0,1.65524245]
[1672601234480,1.6714186,16621.0,16619.0,0.05]
[1672601234698,1.6714186,16621.0,16620.0,0.3907465]
[1672601235010,1.3605566,16621.0,16620.0,0.3907465]
[1672601235949,1.3705566,16621.0,16620.0,0.3907465]
[1672601236162,1.3605566,16621.0,16620.0,0.3907465]
[1672601236366,1.3665566,16621.0,16620.0,0.4357465]
[1672601236794,1.3665566,16621.0,16620.0,0.3457]
[1672601238058,1.3665566,16621.0,16620.0,0.045]
[1672601238273,1.3665566,16621.0,16620.0,0.3457]
[1672601238687,1.3665566,16621.0,16620.0,0.4357465]
[1672601242161,1.3665566,16621.0,16620.0,1.4357465]
[1672601244789,1.3665566,16621.0,16620.0,1.1350465]
[1672601245003,1.3665566,16621.0,16620.0,1.4357465]
[1672601246046,1.3665566,16621.0,16620.0,1.1350465]
[1672601246265,1.3665566,16621.0,16620.0,1.3457]
[1672601253827,1.3665566,16621.0,16620.0,1.4357465]
[1672601254559,1.3665566,16621.0,16620.0,1.57081626]
[1672601254766,1.3665566,16621.0,16620.0,1.4357465]
[1672601259722,1.3665566,16621.0,16620.0,1.57081626]
[1672601261192,1.3665566,16621.0,16620.0,1.3457]
[1672601261402,1.3665566,16621.0,16620.0,1.4357465]
[1672601264029,0.3665566,16621.0,16620.0,0.4357465]
[1672601265806,0.3665566,16621.0,16620.0,0.1350465]
[1672601266019,0.3665566,16621.0,16620.0,0.4357465]
[1672601268553,0.006,16621.0,16620.0,0.48076976]
[1672601268862,0.3338006,16623.0,16621.0,0.05]
[1672601269070,0.3338006,16623.0,16622.0,0.52572595]
[1672601269277,0.3338006,16623.0,16622.0,0.39071038]
[1672601271073,0.4348006,16623.0,16622.0,0.39571038]
[1672601275173,0.4348006,16623.0,16622.0,2.39571038]
[1672601277065,0.4348006,16623.0,16622.0,2.3057]
[1672601277901,0.4348006,16623.0,16622.0,2.39571038]
[1672601278429,0.4348006,16623.0,16622.0,2.3057]
[1672601278846,0.4348006,16623.0,16622.0,2.39571038]
[1672601279482,0.4348006,16623.0,16622.0,2.3057]
[1672601279798,0.4348006,16623.0,16622.0,2.39571038]
[1672601280213,0.4348006,16623.0,16622.0,2.3057]
[1672601298626,0.4348006,16623.0,16622.0,2.005]
[1672601304825,0.4348006,16623.0,16622.0,2.3057]
[1672601306927,0.4348006,16623.0,16622.0,2.39571038]
[1672601309030,0.4348006,16623.0,16622.0,2.44071557]
[1672601309241,0.4348006,16623.0,16622.0,3.11856862]
[1672601309450,0.4348006,16623.0,16622.0,2.98355305]
[1672601310184,0.101,16623.0,16622.0,2.98355305]
[1672601310388,0.6638006,16627.0,16623.0,0.02370324]
[1672601310614,0.6332516,16627.0,16626.0,0.3007]
[1672601310920,0.3338006,16627.0,16626.0,0.39055018]
[1672601311235,0.3338006,16627.0,16626.0,0.99215018]
[1672601311449,0.6423006,16629.0,16626.0,0.9023]
[1672601311767,0.6423006,16629.0,16628.0,0.39052714]
[1672601311768,0.3338006,16629.0,16628.0,0.39052714]
[1672601311968,0.3338006,16629.0,16628.0,0.3007]
[1672601312178,0.3338006,16629.0,16628.0,0.39053196]
[1672601312500,0.3338006,16629.0,16628.0,0.39042888]
[1672601313136,0.3338006,16629.0,16628.0,0.39942888]
[1672601317758,0.3338006,16629.0,16628.0,0.3097]
[1672601317963,0.3338006,16629.0,16628.0,0.39932949]
[1672601318382,0.3338006,16629.0,16628.0,0.3097]
[1672601319135,0.3338006,16629.0,16628.0,0.009]
[1672601320594,0.05,16631.0,16628.0,0.3097]
[1672601323648,0.05,16631.0,16629.0,0.05]
[1672601325016,0.05,16631.0,16629.0,0.06]
[1672601326165,0.05,16631.0,16630.0,0.3007]
[1672601327115,0.05,16631.0,16630.0,0.3117]
[1672601334054,0.05,16631.0,16630.0,0.011]
[1672601334265,0.05,16631.0,16630.0,0.3117]
[1672601338501,0.05,16631.0,16630.0,0.011]
[1672601338681,0.05,16631.0,16630.0,0.3117]
[1672601350987,0.05,16631.0,16630.0,0.011]
[1672601352978,0.05,16631.0,16630.0,0.061]
[1672601353833,0.05,16632.0,16630.0,0.061]
[1672601354034,0.05,16634.0,16631.0,1.05]
[1672601354234,0.05,16634.0,16632.0,0.05]
[1672601355716,0.05,16634.0,16632.0,0.061]
[1672601360994,0.05,16634.0,16632.0,0.3617]
[1672601363296,0.05,16634.0,16633.0,1.05]
[1672601364751,0.05,16634.0,16633.0,1.061]
[1672601367072,0.05,16634.0,16633.0,0.011]
[1672601369696,0.05,16634.0,16633.0,0.061]
[1672601370540,0.05,16634.0,16633.0,0.011]
[1672601370746,0.05,16634.0,16633.0,0.061]
[1672601372230,0.05,16634.0,16633.0,0.011]
[1672601373595,0.05,16634.0,16633.0,0.061]
[1672601375588,0.05,16634.0,16633.0,0.3617]
[1672601375939,0.05,16635.0,16633.0,0.3617]
[1672601376120,0.05,16635.0,16634.0,1.05]
[1672601377584,0.05,16635.0,16634.0,1.061]
[1672601388518,0.05,16635.0,16634.0,0.011]
[1672601395252,0.3507,16635.0,16634.0,0.011]
[1672601397144,0.9523,16635.0,16634.0,0.011]
[1672601401657,0.05,16634.0,16632.0,1.05]
[1672601401872,0.9023,16633.0,16632.0,1.05]
[1672601403136,0.6016,16633.0,16632.0,1.05]
[1672601404084,0.01,16633.0,16632.0,1.06]
[1672601404286,0.06,16633.0,16632.0,1.06]
[1672601407127,0.06,16633.0,16632.0,1.3607]
[1672601407764,0.06,16633.0,16632.0,1.06]
[1672601411750,0.01,16633.0,16632.0,1.06]
[1672601412067,0.1623,16636.0,16633.0,0.05]
[1672601412278,0.1623,16636.0,16635.0,1.05]
[1672601413323,0.1623,16636.0,16635.0,1.061]
[1672601413324,0.1633,16636.0,16635.0,1.061]
[1672601416588,0.1633,16636.0,16635.0,0.011]
[1672601416897,0.1633,16636.0,16635.0,1.061]
[1672601430441,0.001,16636.0,16635.0,1.061]
[1672601449274,0.3017,16636.0,16635.0,1.061]
[1672601461776,0.3017,16636.0,16635.0,0.011]
[1672601465040,0.001,16636.0,16635.0,0.01082376]
[1672601465367,0.3017,16636.0,16635.0,0.01082376]
[1672601482602,0.3017,16636.0,16635.0,2.376e-05]
[1672601482814,0.05,16635.0,16634.0,1.05]
[1672601483448,0.05,16635.0,16633.0,1.05]
[1672601483650,0.3007,16634.0,16633.0,1.05]
[1672601485120,0.3117,16634.0,16633.0,1.061]
[1672601490279,0.3117,16634.0,16633.0,0.011]
[1672601490504,0.3117,16634.0,16631.0,1.05]
[1672601490706,0.3007,16632.0,16631.0,1.05]
[1672601491761,0.3217,16632.0,16631.0,1.06]
[1672601496497,0.3217,16632.0,16631.0,0.01]
[1672601514476,0.021,16632.0,16631.0,0.01]
[1672601514786,0.3217,16632.0,16631.0,0.01]
[1672601515206,0.021,16632.0,16631.0,0.01]
[1672601515413,0.3217,16632.0,16631.0,0.01]
[1672601515839,0.021,16632.0,16631.0,0.01]
[1672601516049,0.3217,16632.0,16631.0,0.01]
[1672601527193,0.3217,16632.0,16631.0,1.06]
[1672601544432,0.3217,16632.0,16631.0,1.05984753]
[1672601564418,0.3217,16632.0,16629.0,1.05]
[1672601564730,0.3007,16630.0,16629.0,1.05]
[1672601566621,0.3317,16630.0,16629.0,1.058]
[1672601569138,0.4327,16630.0,16629.0,1.051]
[1672601570086,0.4357,16630.0,16629.0,1.051]
[1672601570725,0.4357,16630.0,16628.0,1.05]
[1672601571038,0.05,16629.0,16628.0,1.05]
[1672601572922,0.05,16629.0,16628.0,1.051]
[1672601573132,0.05,16629.0,16628.0,1.05]
[1672601573339,0.184,16629.0,16628.0,1.051]
[1672601573984,0.4847,16629.0,16628.0,1.051]
[1672601583663,0.184,16629.0,16628.0,1.051]
[1672601583870,0.4847,16629.0,16628.0,1.051]
[1672601593956,0.184,16629.0,16628.0,1.051]
[1672601594169,0.4847,16629.0,16628.0,1.051]
[1672601594588,0.48463222,16629.0,16628.0,1.051]
[1672601620326,0.18393222,16629.0,16628.0,1.051]
[1672601620538,0.48463222,16629.0,16628.0,1.051]
[1672601626536,0.18393222,16629.0,16628.0,1.051]
[1672601626755,0.48463222,16629.0,16628.0,1.051]
[1672601628954,0.18393222,16629.0,16628.0,1.051]